{"text_format":"1","workbook":"xlsx","n_sheets":3,"sheets":["SUIVI","Groupe","données"],"not_rendered":{"charts":0,"images":0,"macros":1,"external_links":1,"defined_names":64,"comments":1,"pivot_tables":0},"unopened":[],"bounds":{"document_bytes":16777216,"sheet_cells":100000,"rows_first":2000,"rows_last":500,"rows_between":2000,"halvings":0,"cell_chars":16384,"cell_head_chars":4096},"cells_cut":0,"cells_raw":0,"read":"whole","date_system":"1900"}

{"sheet":"SUIVI","index":0,"n_rows":28,"n_cols":23,"rows_kept":28,"cut":false,"hidden":false,"merged":[[11,11,11,13],[11,14,11,16],[11,18,11,20],[6,2,6,4],[29,1,29,10],[0,1,1,5],[0,6,1,6],[2,1,2,5],[3,1,3,5],[5,2,5,4]]}
[]
[null,null,null,null,null,null,null,"PROBLÈME",{"$f":"CONCATENATE(COUNTIF($H:$H,H2)-1,\" dans ce status\")","v":"0 dans ce status"},{"$f":"(COUNTIF($H:$H,H2)-1)/($F$6)","v":0}]
[null,null,null,null,null,null,null,"EN COURS",{"$f":"CONCATENATE(COUNTIF($H:$H,H3)-1,\" dans ce status\")","v":"0 dans ce status"},{"$f":"(COUNTIF($H:$H,H3)-1)/($F$6)","v":0}]
[null,null,null,null,null,null,null,"A REVOIR",{"$f":"CONCATENATE(COUNTIF($H:$H,H4)-1,\" dans ce status\")","v":"0 dans ce status"},{"$f":"(COUNTIF($H:$H,H4)-1)/($F$6)","v":0}]
[null,null,null,null,null,null,null,"TERMINÉ",{"$f":"CONCATENATE(COUNTIF($H:$H,H5)-1,\" dans ce status\")","v":"1 dans ce status"},{"$f":"(COUNTIF($H:$H,H5)-1)/($F$6)","v":1}]
[null,null,"Nombre de lignes actives",null,null,{"$f":"COUNTA($F$26:$F$1048576)","v":1},null,"TVX REPORTÉS",{"$f":"CONCATENATE(COUNTIF($H:$H,H6)-1,\" dans ce status\")","v":"0 dans ce status"},{"$f":"(COUNTIF($H:$H,H6)-1)/($F$6)","v":0}]
[null,null,"Nombre d'OE",null,null,{"$f":"COUNTA($B$26:$B$1048576)","v":0},null,"NON CONCERNÉ",{"$f":"CONCATENATE(COUNTIF($H:$H,H7)-1,\" dans ce status\")","v":"0 dans ce status"},{"$f":"(COUNTIF($H:$H,H7)-1)/($F$6)","v":0}]
[null,null,null,null,null,null,null,"A CONTRÔLER",{"$f":"CONCATENATE(COUNTIF($H:$H,H8)-1,\" dans ce status\")","v":"0 dans ce status"},{"$f":"(COUNTIF($H:$H,H8)-1)/($F$6)","v":0}]
[null,null,null,null,null,null,null,null,{"$f":"CONCATENATE(COUNTIF($H:$H,H9)-1,\" dans ce status\")","v":"-1 dans ce status"},{"$f":"(COUNTIF($H:$H,H9)-1)/($F$6)","v":-1}]
[null,null,null,null,null,null,null,"All"]
[null,"OE/MT","ATA","MOD","Origine","ITEM BDV","Description","STATUS","Observations / Remarques","DATE","TRG"]
[null,null,null,"MOD XX",null,null,null,{"$f":"IF(COUNTIF(H13:H25,SUIVI!$H$5)=ROWS(H13:H25),données!$B$2,données!$B$3)","v":"NOK"},null,null,null,{"$f":"IF(COUNTIF(L13:L25,\"NOK\")>0,\"NOK\",IF(COUNTIF(L13:L25,\"ok\")>0,\"OK\",IF(COUNTIF(L13:L25,\"nc\")>0,\"NC\",\"\")))","v":""},null,null,{"$f":"IF(COUNTIF(O13:O25,\"NOK\")>0,\"NOK\",IF(COUNTIF(O13:O25,\"ok\")>0,\"OK\",IF(COUNTIF(O13:O25,\"nc\")>0,\"NC\",\"\")))","v":""},null,null,{"$f":"IF(COUNTIF(R13:R25,\"NOK\")>0,\"NOK\",IF(COUNTIF(R13:R25,\"ok\")>0,\"OK\",IF(COUNTIF(R13:S25,\"nc\")>0,\"NC\",\"\")))","v":""},{"$f":"IF(COUNTIF(S13:S25,\"NOK\")>0,\"NOK\",IF(COUNTIF(S13:S25,\"ok\")>0,\"OK\",IF(COUNTIF(R13:S25,\"nc\")>0,\"NC\",\"\")))","v":""},null,null,{"$f":"IF(COUNTIF(V13:V25,\"NOK\")>0,\"NOK\",IF(COUNTIF(V13:V25,\"ok\")>0,\"OK\",IF(COUNTIF(V13:W25,\"nc\")>0,\"NC\",\"\")))","v":""},{"$f":"IF(COUNTIF(W13:W25,\"NOK\")>0,\"NOK\",IF(COUNTIF(W13:W25,\"ok\")>0,\"OK\",IF(COUNTIF(V13:W25,\"nc\")>0,\"NC\",\"\")))","v":""}]
[null,null,null,null,null,null,"Référence"]
[null,null,null,null,"MT",null,"PHASE 1 - "]
[null,null,null,null,"MT",null,"PHASE 2 -"]
[null,null,null,null,"MT",null,"PHASE 3 - "]
[null,null,null,null,"MT",null,"PHASE 4 -  "]
[null,null,null,null,"MT",null,"PHASE 5 -"]
[null,null,null,null,"MT",null,"PHASE 6 -"]
[null,null,null,null,"MT",null,"PHASE 7 -"]
[null,null,null,null,"MT",null,"PHASE 8 -"]
[null,null,null,null,null,null,"dépose ?"]
[null,null,null,null,null,null,"pose?"]
[]
[null,null,null,null,null,null,"contrôle "]
[null,null,"CIL",null,null,null,null,{"$f":"IF(COUNTIF(H27:H27,SUIVI!$H$5)=ROWS(H27:H27),données!$B$2,IF(COUNTIF(H27:H27,SUIVI!$H$7)=ROWS(H27:H27),données!$B$2,données!$B$3))","v":"OK"}]
[null,null,null,null,null,"x",null,"TERMINÉ"]
[null,null,"TRAVAUX SUPPLEMENTAIRES",null,null,null,null,{"$f":"IF(COUNTIF(H29:H29,SUIVI!$H$5)=ROWS(H29:H29),données!$B$2,IF(COUNTIF(H29:H29,SUIVI!$H$7)=ROWS(H29:H29),données!$B$2,données!$B$3))","v":"NOK"}]

{"sheet":"Groupe","index":1,"n_rows":14,"n_cols":23,"rows_kept":14,"cut":false,"hidden":true,"merged":[[0,11,0,13],[0,14,0,16],[0,18,0,20]]}
[null,null,null,"MOD XX",null,null,null,{"$f":"IF(COUNTIF(H2:H14,SUIVI!$H$5)=ROWS(H2:H14),données!$B$2,données!$B$3)","v":"NOK"},null,null,null,{"$f":"IF(COUNTIF(L2:L14,\"NOK\")>0,\"NOK\",IF(COUNTIF(L2:L14,\"ok\")>0,\"OK\",IF(COUNTIF(L2:L14,\"nc\")>0,\"NC\",\"\")))","v":""},null,null,{"$f":"IF(COUNTIF(O2:O14,\"NOK\")>0,\"NOK\",IF(COUNTIF(O2:O14,\"ok\")>0,\"OK\",IF(COUNTIF(O2:O14,\"nc\")>0,\"NC\",\"\")))","v":""},null,null,{"$f":"IF(COUNTIF(R2:R14,\"NOK\")>0,\"NOK\",IF(COUNTIF(R2:R14,\"ok\")>0,\"OK\",IF(COUNTIF(R2:S14,\"nc\")>0,\"NC\",\"\")))","v":""},{"$f":"IF(COUNTIF(S2:S14,\"NOK\")>0,\"NOK\",IF(COUNTIF(S2:S14,\"ok\")>0,\"OK\",IF(COUNTIF(R2:S14,\"nc\")>0,\"NC\",\"\")))","v":""},null,null,{"$f":"IF(COUNTIF(V2:V14,\"NOK\")>0,\"NOK\",IF(COUNTIF(V2:V14,\"ok\")>0,\"OK\",IF(COUNTIF(V2:W14,\"nc\")>0,\"NC\",\"\")))","v":""},{"$f":"IF(COUNTIF(W2:W14,\"NOK\")>0,\"NOK\",IF(COUNTIF(W2:W14,\"ok\")>0,\"OK\",IF(COUNTIF(V2:W14,\"nc\")>0,\"NC\",\"\")))","v":""}]
[null,null,null,null,null,null,"Référence"]
[null,null,null,null,"MT",null,"PHASE 1 - "]
[null,null,null,null,"MT",null,"PHASE 2 -"]
[null,null,null,null,"MT",null,"PHASE 3 - "]
[null,null,null,null,"MT",null,"PHASE 4 -  "]
[null,null,null,null,"MT",null,"PHASE 5 -"]
[null,null,null,null,"MT",null,"PHASE 6 -"]
[null,null,null,null,"MT",null,"PHASE 7 -"]
[null,null,null,null,"MT",null,"PHASE 8 -"]
[null,null,null,null,null,null,"dépose ?"]
[null,null,null,null,null,null,"pose?"]
[]
[null,null,null,null,null,null,"contrôle "]

{"sheet":"données","index":2,"n_rows":7,"n_cols":4,"rows_kept":7,"cut":false,"hidden":false,"merged":[]}
["trigrammes","validation","origine","Données"]
["AAA","OK","autre","CONTRÔLE"]
["BBB","NOK","MT","OE STANDARDS"]
["CCC","NC","CFG","MOD"]
[null,null,"DA","CIL"]
[null,null,"MOD","TRAVAUX SUPPLEMENTAIRES"]
[null,null,"STD","F3R"]